[Event "FIDE World Rapid Chess Championship 2021"]
[White "Nasuta, Grzegorz"]
[Black "Baum, Jonasz"]
[WhiteFideId "1141686"]
[BlackFideId "1195360"]
[WhiteElo "2345"]
[BlackElo "2343"]
[Result "0-1"]
[Round "08"]
[TimeControl "900+10"]
[Date "2021.12.27"]
[WhiteClock "0:00:43"]
[BlackClock "0:01:07"]

1. e4 {[%clk 0:15:00]}  c5 {[%clk 0:15:00]} 2. Nf3 {[%clk 0:15:00]}  Nc6 {[%clk 0:14:24]} 3. Bb5 {[%clk 0:15:55]}  a6 {[%clk 0:14:24]} 4. Bxc6 {[%clk 0:15:55]}  dxc6 {[%clk 0:14:24]} 5. d3 {[%clk 0:15:55]}  Qc7 {[%clk 0:14:24]} 6. h3 {[%clk 0:15:55]}  e5 {[%clk 0:14:24]} 7. a4 {[%clk 0:15:55]}  a5 {[%clk 0:14:24]} 8. Be3 {[%clk 0:15:55]}  Bd6 {[%clk 0:14:24]} 9. Na3 {[%clk 0:15:55]}  Ne7 {[%clk 0:14:24]} 10. Nc4 {[%clk 0:15:55]}  f6 {[%clk 0:14:24]} 11. Nfd2 {[%clk 0:15:55]}  Be6 {[%clk 0:14:24]} 12. O-O {[%clk 0:15:55]}  Ng6 {[%clk 0:14:24]} 13. b3 {[%clk 0:15:41]}  Be7 {[%clk 0:11:58]} 14. Nb1 {[%clk 0:15:06]}  O-O {[%clk 0:11:30]} 15. Nc3 {[%clk 0:15:06]}  Rfd8 {[%clk 0:11:29]} 16. Qf3 {[%clk 0:10:23]}  b6 {[%clk 0:08:58]} 17. Ne2 {[%clk 0:08:04]}  Rf8 {[%clk 0:08:25]} 18. Ng3 {[%clk 0:06:49]}  Nh4 {[%clk 0:04:58]} 19. Qh5 {[%clk 0:06:49]}  g5 {[%clk 0:04:58]} 20. Qh6 {[%clk 0:01:48]}  b5 {[%clk 0:02:15]} 21. Nd2 {[%clk 0:00:49]}  Qd7 {[%clk 0:02:15]} 22. Kh2 {[%clk 0:00:49]}  Rf7 {[%clk 0:02:15]} 23. Qh5 {[%clk 0:00:49]}  Ng6 {[%clk 0:00:55]} 24. Nf5 {[%clk 0:00:13]}  Bxf5 {[%clk 0:00:55]} 25. exf5 {[%clk 0:00:13]}  Qxf5 {[%clk 0:00:55]} 26. Qg4 {[%clk 0:00:13]}  Qxg4 {[%clk 0:00:55]} 27. hxg4 {[%clk 0:00:13]}  Nf8 {[%clk 0:00:55]} 28. axb5 {[%clk 0:00:13]}  cxb5 {[%clk 0:00:55]} 29. Ra2 {[%clk 0:00:13]}  Ne6 {[%clk 0:00:55]} 30. Rfa1 {[%clk 0:00:13]}  Bd8 {[%clk 0:00:15]} 31. Ne4 {[%clk 0:00:20]}  h5 {[%clk 0:00:15]} 32. gxh5 {[%clk 0:00:20]}  f5 {[%clk 0:00:15]} 33. Nd6 {[%clk 0:00:20]}  Rh7 {[%clk 0:00:15]} 34. Nxf5 {[%clk 0:00:20]}  Rxh5+ {[%clk 0:00:15]} 35. Kg1 {[%clk 0:00:20]}  Ra6 {[%clk 0:00:15]} 36. Ng3 {[%clk 0:00:20]}  Rh7 {[%clk 0:00:15]} 37. Ne4 {[%clk 0:00:20]}  Nd4 {[%clk 0:00:15]} 38. Bxg5 {[%clk 0:00:20]}  Ne2+ {[%clk 0:00:15]} 39. Kf1 {[%clk 0:00:20]}  Nd4 {[%clk 0:00:13]} 40. Ke1 {[%clk 0:00:22]}  Bxg5 {[%clk 0:00:13]} 41. Nxg5 {[%clk 0:00:22]}  Rg7 {[%clk 0:00:13]} 42. Ne4 {[%clk 0:00:22]}  Rxg2 {[%clk 0:00:13]} 43. Kd2 {[%clk 0:00:22]}  a4 {[%clk 0:00:13]} 44. bxa4 {[%clk 0:00:22]}  b4 {[%clk 0:00:13]} 45. Rb2 {[%clk 0:00:22]}  Ra5 {[%clk 0:00:13]} 46. c3 {[%clk 0:00:22]}  Nc6 {[%clk 0:00:13]} 47. Rc2 {[%clk 0:00:22]}  Ra8 {[%clk 0:00:21]} 48. cxb4 {[%clk 0:00:15]}  Nd4 {[%clk 0:00:21]} 49. Rb2 {[%clk 0:00:15]}  cxb4 {[%clk 0:00:21]} 50. Rxb4 {[%clk 0:00:15]}  Rc8 {[%clk 0:00:21]} 51. Rb2 {[%clk 0:00:15]}  Nf3+ {[%clk 0:00:21]} 52. Ke3 {[%clk 0:00:15]}  Nd4 {[%clk 0:00:21]} 53. Rh1 {[%clk 0:00:15]}  Rg7 {[%clk 0:00:21]} 54. a5 {[%clk 0:00:15]}  Rf7 {[%clk 0:00:21]} 55. a6 {[%clk 0:00:15]}  Ra8 {[%clk 0:00:21]} 56. Rh6 {[%clk 0:00:15]}  Nf5+ {[%clk 0:00:21]} 57. Kd2 {[%clk 0:00:15]}  Nxh6 {[%clk 0:00:21]} 58. Rb6 {[%clk 0:00:15]}  Nf5 {[%clk 0:00:21]} 59. Nc5 {[%clk 0:00:15]}  Nd4 {[%clk 0:00:48]} 60. Ke3 {[%clk 0:00:25]}  Rc7 {[%clk 0:00:48]} 61. Nb7 {[%clk 0:00:25]}  Rc6 {[%clk 0:00:48]} 62. Rxc6 {[%clk 0:00:25]}  Nxc6 {[%clk 0:00:48]} 63. Nc5 {[%clk 0:00:25]}  Nb4 {[%clk 0:00:48]} 64. Ke4 {[%clk 0:00:25]}  Nxa6 {[%clk 0:00:48]} 65. Nd7 {[%clk 0:00:25]}  Rd8 {[%clk 0:00:48]} 66. Nxe5 {[%clk 0:00:25]}  Nc5+ {[%clk 0:00:48]} 67. Ke3 {[%clk 0:00:25]}  Re8 {[%clk 0:00:48]} 68. Kd4 {[%clk 0:00:25]}  Ne6+ {[%clk 0:00:48]} 69. Kd5 {[%clk 0:00:25]}  Nf4+ {[%clk 0:00:48]} 70. Kd4 {[%clk 0:00:25]}  Kg7 {[%clk 0:00:48]} 71. f3 {[%clk 0:00:25]}  Kg8 {[%clk 0:01:07]} 72. Nc6 {[%clk 0:00:43]}  Kf7 {[%clk 0:01:07]} 73. Ne5+ {[%clk 0:00:43]}  Kf6 {[%clk 0:01:07]} 74. Nd7+ {[%clk 0:00:43]}  Kf5 {[%clk 0:01:07]} 75. Nc5 {[%clk 0:00:43]}  Ne6+ {[%clk 0:01:07]} 76. Nxe6 {[%clk 0:00:43]}  Rxe6 {[%clk 0:01:07]} 77. Kc5 {[%clk 0:00:43]}  Re3 {[%clk 0:01:07]} 78. d4 {[%clk 0:00:43]}  Rxf3 {[%clk 0:01:07]} 0-1


[Site "http://www.Chess.com"]

[Event "FIDE World Rapid Chess Championship 2021"]
[White "Kolosowski, Mateusz"]
[Black "Lubczynski, Rafal"]
[WhiteFideId "1129708"]
[BlackFideId "1126091"]
[WhiteElo "2371"]
[BlackElo "2289"]
[Result "1-0"]
[Round "08"]
[TimeControl "900+10"]
[Date "2021.12.27"]
[WhiteClock "0:05:26"]
[BlackClock "0:01:02"]

1. e4 {[%clk 0:15:00]}  d6 {[%clk 0:15:00]} 2. d4 {[%clk 0:15:00]}  Nf6 {[%clk 0:15:00]} 3. Nc3 {[%clk 0:15:00]}  e5 {[%clk 0:15:00]} 4. Nge2 {[%clk 0:14:58]}  Nc6 {[%clk 0:16:02]} 5. h3 {[%clk 0:14:58]}  exd4 {[%clk 0:16:02]} 6. Nxd4 {[%clk 0:14:58]}  Be7 {[%clk 0:16:02]} 7. Nxc6 {[%clk 0:14:58]}  bxc6 {[%clk 0:16:02]} 8. Bd3 {[%clk 0:14:58]}  O-O {[%clk 0:16:02]} 9. O-O {[%clk 0:14:58]}  d5 {[%clk 0:13:28]} 10. Qf3 {[%clk 0:15:06]}  Be6 {[%clk 0:13:28]} 11. Bf4 {[%clk 0:13:40]}  dxe4 {[%clk 0:10:45]} 12. Nxe4 {[%clk 0:12:42]}  Nd5 {[%clk 0:10:45]} 13. Be5 {[%clk 0:12:30]}  f6 {[%clk 0:04:42]} 14. Bh2 {[%clk 0:08:45]}  Nb4 {[%clk 0:04:44]} 15. Rad1 {[%clk 0:08:45]}  Nxd3 {[%clk 0:04:44]} 16. Rxd3 {[%clk 0:08:45]}  Qb8 {[%clk 0:04:44]} 17. b3 {[%clk 0:08:45]}  Rd8 {[%clk 0:03:44]} 18. Re3 {[%clk 0:07:38]}  Bf7 {[%clk 0:00:55]} 19. Ng5 {[%clk 0:07:38]}  Bd5 {[%clk 0:01:02]} 20. Qh5 {[%clk 0:05:26]}  fxg5 {[%clk 0:01:02]} 21. Rxe7 {[%clk 0:05:26]}  Qb4 {[%clk 0:01:02]} 22. Qxg5 {[%clk 0:05:26]}  Bf7 {[%clk 0:01:02]} 23. Be5 {[%clk 0:05:26]}  Kf8 {[%clk 0:01:02]} 24. Bxg7+ {[%clk 0:05:26]} 1-0


[Site "http://www.Chess.com"]

[Event "FIDE World Rapid Chess Championship 2021"]
[White "Jobava, Baadur"]
[Black "Grischuk, Alexander"]
[WhiteFideId "13601520"]
[BlackFideId "4126025"]
[WhiteElo "2679"]
[BlackElo "2763"]
[Result "1/2-1/2"]
[Round "09"]
[TimeControl "900+10"]
[Date "2021.12.27"]
[WhiteClock "0:00:27"]
[BlackClock "0:00:00"]

1. d4 {[%clk 0:15:00]}  Nf6 {[%clk 0:15:00]} 2. c4 {[%clk 0:15:00]}  e6 {[%clk 0:15:00]} 3. Nc3 {[%clk 0:15:00]}  Bb4 {[%clk 0:15:00]} 4. Qc2 {[%clk 0:15:00]}  d5 {[%clk 0:15:00]} 5. cxd5 {[%clk 0:15:00]}  exd5 {[%clk 0:15:00]} 6. Bg5 {[%clk 0:15:00]}  h6 {[%clk 0:15:00]} 7. Bh4 {[%clk 0:15:00]}  O-O {[%clk 0:13:41]} 8. e3 {[%clk 0:16:12]}  c5 {[%clk 0:13:41]} 9. dxc5 {[%clk 0:16:12]}  Be6 {[%clk 0:13:41]} 10. Nf3 {[%clk 0:16:12]}  Nbd7 {[%clk 0:13:41]} 11. Bd3 {[%clk 0:16:12]}  Rc8 {[%clk 0:13:41]} 12. O-O {[%clk 0:16:12]}  Nxc5 {[%clk 0:11:37]} 13. Ne2 {[%clk 0:16:34]}  Nce4 {[%clk 0:11:37]} 14. Qb3 {[%clk 0:16:34]}  Qb6 {[%clk 0:10:21]} 15. Bxf6 {[%clk 0:16:34]}  Nxf6 {[%clk 0:10:21]} 16. Ned4 {[%clk 0:16:34]}  Bc5 {[%clk 0:08:38]} 17. Qxb6 {[%clk 0:15:02]}  Bxb6 {[%clk 0:08:38]} 18. h3 {[%clk 0:12:58]}  Rfd8 {[%clk 0:08:03]} 19. Rfd1 {[%clk 0:12:58]}  Kf8 {[%clk 0:08:03]} 20. a4 {[%clk 0:12:58]}  a5 {[%clk 0:08:03]} 21. Kf1 {[%clk 0:12:58]}  Ke7 {[%clk 0:08:03]} 22. Ke2 {[%clk 0:12:58]}  g6 {[%clk 0:07:14]} 23. Ra3 {[%clk 0:12:29]}  Bc5 {[%clk 0:07:14]} 24. Rb3 {[%clk 0:12:29]}  b6 {[%clk 0:05:50]} 25. Ba6 {[%clk 0:12:19]}  Rc7 {[%clk 0:04:14]} 26. Nb5 {[%clk 0:10:57]}  Rcd7 {[%clk 0:04:14]} 27. Ne5 {[%clk 0:10:57]}  Ra8 {[%clk 0:01:41]} 28. Nxd7 {[%clk 0:10:31]}  Kxd7 {[%clk 0:01:41]} 29. Bb7 {[%clk 0:10:31]}  Rb8 {[%clk 0:01:41]} 30. Bxd5 {[%clk 0:10:31]}  Bxd5 {[%clk 0:01:41]} 31. e4 {[%clk 0:10:35]}  Re8 {[%clk 0:01:08]} 32. Kf3 {[%clk 0:10:35]}  Rxe4 {[%clk 0:01:08]} 33. Rxd5+ {[%clk 0:10:35]}  Kc6 {[%clk 0:01:08]} 34. Rd8 {[%clk 0:08:10]}  Rxa4 {[%clk 0:01:01]} 35. Rc8+ {[%clk 0:01:35]}  Kd7 {[%clk 0:01:05]} 36. Ra8 {[%clk 0:01:35]}  Ne4 {[%clk 0:01:05]} 37. Rd3+ {[%clk 0:01:35]}  Kc6 {[%clk 0:01:05]} 38. Nc3 {[%clk 0:00:35]}  Nxc3 {[%clk 0:00:35]} 39. Rxc3 {[%clk 0:00:35]}  Ra2 {[%clk 0:00:35]} 40. b4 {[%clk 0:00:35]}  Rxf2+ {[%clk 0:00:35]} 41. Kg3 {[%clk 0:00:35]}  axb4 {[%clk 0:00:35]} 42. Rxc5+ {[%clk 0:00:35]}  Kxc5 {[%clk 0:00:35]} 43. Kxf2 {[%clk 0:00:35]}  b3 {[%clk 0:00:35]} 44. Ra1 {[%clk 0:00:35]}  Kc4 {[%clk 0:00:00]} 45. Rc1+ {[%clk 0:00:27]}  Kb4 {[%clk 0:00:00]} 46. Rb1 {[%clk 0:00:27]}  Kc3 {[%clk 0:00:00]} 47. Rc1+ {[%clk 0:00:27]}  Kb4 {[%clk 0:00:00]} 48. Rb1 {[%clk 0:00:27]}  Kc3 {[%clk 0:00:00]} 49. Rc1+ {[%clk 0:00:27]} 1/2-1/2


[Site "http://www.Chess.com"]

[Event "FIDE World Rapid Chess Championship 2021"]
[White "Gelfand, Boris"]
[Black "Abdusattorov, Nodirbek"]
[WhiteFideId "2805677"]
[BlackFideId "14204118"]
[WhiteElo "2648"]
[BlackElo "2593"]
[Result "0-1"]
[Round "09"]
[TimeControl "900+10"]
[Date "2021.12.27"]
[WhiteClock "0:02:27"]
[BlackClock "0:04:37"]

1. d4 {[%clk 0:15:00]}  Nf6 {[%clk 0:15:00]} 2. Nf3 {[%clk 0:15:00]}  d5 {[%clk 0:15:00]} 3. c4 {[%clk 0:15:00]}  e6 {[%clk 0:15:00]} 4. g3 {[%clk 0:15:00]}  dxc4 {[%clk 0:15:00]} 5. Bg2 {[%clk 0:15:00]}  Nc6 {[%clk 0:15:00]} 6. Qa4 {[%clk 0:15:00]}  Bb4+ {[%clk 0:15:00]} 7. Bd2 {[%clk 0:15:00]}  Nd5 {[%clk 0:15:00]} 8. Bxb4 {[%clk 0:15:00]}  Nxb4 {[%clk 0:15:00]} 9. Nc3 {[%clk 0:15:00]}  Rb8 {[%clk 0:12:41]} 10. a3 {[%clk 0:14:35]}  Nd5 {[%clk 0:12:27]} 11. Qxc4 {[%clk 0:12:14]}  O-O {[%clk 0:12:27]} 12. Rd1 {[%clk 0:12:14]}  Na5 {[%clk 0:12:34]} 13. Qd3 {[%clk 0:11:13]}  b5 {[%clk 0:12:34]} 14. O-O {[%clk 0:11:18]}  Nc4 {[%clk 0:10:05]} 15. Qc2 {[%clk 0:11:18]}  Nxc3 {[%clk 0:10:05]} 16. Qxc3 {[%clk 0:11:18]}  Bb7 {[%clk 0:10:05]} 17. Nd2 {[%clk 0:07:13]}  Bxg2 {[%clk 0:10:19]} 18. Kxg2 {[%clk 0:07:13]}  Qd5+ {[%clk 0:10:19]} 19. Kg1 {[%clk 0:07:13]}  Rfd8 {[%clk 0:09:40]} 20. Nxc4 {[%clk 0:05:44]}  bxc4 {[%clk 0:09:40]} 21. Rd2 {[%clk 0:04:23]}  Rb3 {[%clk 0:08:43]} 22. Qc2 {[%clk 0:04:23]}  c3 {[%clk 0:08:43]} 23. bxc3 {[%clk 0:04:23]}  Qc4 {[%clk 0:08:43]} 24. Qd3 {[%clk 0:03:59]}  Qxc3 {[%clk 0:06:56]} 25. Rfd1 {[%clk 0:03:59]}  Rxa3 {[%clk 0:06:56]} 26. Qxc3 {[%clk 0:03:59]}  Rxc3 {[%clk 0:06:56]} 27. Ra1 {[%clk 0:03:59]}  c5 {[%clk 0:05:40]} 28. Rxa7 {[%clk 0:03:40]}  g6 {[%clk 0:05:40]} 29. Rc7 {[%clk 0:03:40]}  Rxd4 {[%clk 0:05:40]} 30. Ra2 {[%clk 0:03:40]}  Rd5 {[%clk 0:04:37]} 31. Ra8+ {[%clk 0:02:27]}  Kg7 {[%clk 0:04:37]} 32. e4 {[%clk 0:02:27]}  Rd2 {[%clk 0:04:37]} 33. Ra1 {[%clk 0:02:27]}  Rcc2 {[%clk 0:04:37]} 34. Rf1 {[%clk 0:02:27]}  Re2 {[%clk 0:04:37]} 0-1


[Site "http://www.Chess.com"]

[Event "FIDE World Rapid Chess Championship 2021"]
[White "Nakamura, Hikaru"]
[Black "Fedoseev, Vladimir"]
[WhiteFideId "2016192"]
[BlackFideId "24130737"]
[WhiteElo "2836"]
[BlackElo "2692"]
[Result "1-0"]
[Round "09"]
[TimeControl "900+10"]
[Date "2021.12.27"]
[WhiteClock "0:00:21"]
[BlackClock "0:00:08"]

1. d4 {[%clk 0:15:00]}  Nf6 {[%clk 0:15:00]} 2. c4 {[%clk 0:15:00]}  e6 {[%clk 0:15:00]} 3. Nc3 {[%clk 0:15:00]}  Bb4 {[%clk 0:15:00]} 4. Qc2 {[%clk 0:15:00]}  d5 {[%clk 0:15:00]} 5. cxd5 {[%clk 0:15:00]}  exd5 {[%clk 0:15:00]} 6. Bg5 {[%clk 0:15:00]}  h6 {[%clk 0:15:00]} 7. Bh4 {[%clk 0:15:00]}  c5 {[%clk 0:14:38]} 8. dxc5 {[%clk 0:15:21]}  Nc6 {[%clk 0:14:38]} 9. e3 {[%clk 0:15:21]}  g5 {[%clk 0:12:43]} 10. Bg3 {[%clk 0:14:47]}  Ne4 {[%clk 0:12:43]} 11. Bd3 {[%clk 0:14:47]}  Nxg3 {[%clk 0:12:43]} 12. hxg3 {[%clk 0:14:47]}  Bxc5 {[%clk 0:12:43]} 13. Nf3 {[%clk 0:14:49]}  g4 {[%clk 0:09:40]} 14. Nh4 {[%clk 0:14:49]}  d4 {[%clk 0:09:40]} 15. exd4 {[%clk 0:14:49]}  Nxd4 {[%clk 0:09:40]} 16. Qd2 {[%clk 0:11:32]}  Qe7+ {[%clk 0:08:56]} 17. Kf1 {[%clk 0:11:32]}  Be6 {[%clk 0:07:16]} 18. Ne4 {[%clk 0:10:22]}  Bb6 {[%clk 0:07:16]} 19. Rc1 {[%clk 0:10:22]}  Bc7 {[%clk 0:06:04]} 20. Nf6+ {[%clk 0:09:35]}  Qxf6 {[%clk 0:04:09]} 21. Rxc7 {[%clk 0:08:39]}  O-O {[%clk 0:04:09]} 22. Kg1 {[%clk 0:08:39]}  Rfc8 {[%clk 0:02:42]} 23. Rxb7 {[%clk 0:07:52]}  Bxa2 {[%clk 0:01:04]} 24. Kh2 {[%clk 0:06:46]}  Rab8 {[%clk 0:01:04]} 25. Rxb8 {[%clk 0:06:46]}  Rxb8 {[%clk 0:01:04]} 26. b4 {[%clk 0:06:46]}  Be6 {[%clk 0:01:04]} 27. Re1 {[%clk 0:06:46]}  Nb3 {[%clk 0:01:15]} 28. Rxe6 {[%clk 0:04:55]}  fxe6 {[%clk 0:01:15]} 29. Qc2 {[%clk 0:04:55]}  Rxb4 {[%clk 0:01:15]} 30. Qc8+ {[%clk 0:04:55]}  Kg7 {[%clk 0:01:15]} 31. Qc7+ {[%clk 0:04:55]}  Qf7 {[%clk 0:01:15]} 32. Qc3+ {[%clk 0:04:55]}  Rd4 {[%clk 0:01:15]} 33. Qxb3 {[%clk 0:04:55]}  Qxf2 {[%clk 0:01:15]} 34. Qxe6 {[%clk 0:04:55]}  Rxd3 {[%clk 0:01:15]} 35. Qg6+ {[%clk 0:02:12]}  Kf8 {[%clk 0:00:17]} 36. Qxh6+ {[%clk 0:02:12]}  Ke7 {[%clk 0:00:17]} 37. Qh7+ {[%clk 0:02:12]}  Kd6 {[%clk 0:00:17]} 38. Qxd3+ {[%clk 0:02:12]}  Kc5 {[%clk 0:00:17]} 39. Nf5 {[%clk 0:02:12]}  a5 {[%clk 0:00:17]} 40. Qa3+ {[%clk 0:02:12]}  Kb5 {[%clk 0:00:17]} 41. Nd6+ {[%clk 0:02:12]}  Kc6 {[%clk 0:00:17]} 42. Ne4 {[%clk 0:01:36]}  Qf5 {[%clk 0:00:09]} 43. Qc3+ {[%clk 0:01:36]}  Kb6 {[%clk 0:00:09]} 44. Qd4+ {[%clk 0:01:36]}  Kc6 {[%clk 0:00:09]} 45. Kg1 {[%clk 0:00:21]}  Qf8 {[%clk 0:00:08]} 46. Nf2 {[%clk 0:00:21]}  Qc5 {[%clk 0:00:08]} 47. Qxg4 {[%clk 0:00:21]}  Kb5 {[%clk 0:00:08]} 48. Qe2+ {[%clk 0:00:21]}  Kb4 {[%clk 0:00:08]} 49. Kf1 {[%clk 0:00:21]}  Kb3 {[%clk 0:00:08]} 50. Qd3+ {[%clk 0:00:21]}  Kb2 {[%clk 0:00:08]} 51. Nd1+ {[%clk 0:00:21]}  Kc1 {[%clk 0:00:08]} 52. Qc3+ {[%clk 0:00:21]} 1-0


[Site "http://www.Chess.com"]

[Event "FIDE World Rapid Chess Championship 2021"]
[White "Caruana, Fabiano"]
[Black "Anton Guijarro, David"]
[WhiteFideId "2020009"]
[BlackFideId "2285525"]
[WhiteElo "2770"]
[BlackElo "2627"]
[Result "1-0"]
[Round "09"]
[TimeControl "900+10"]
[Date "2021.12.27"]
[WhiteClock "0:05:57"]
[BlackClock "0:01:35"]

1. e4 {[%clk 0:15:00]}  c6 {[%clk 0:15:00]} 2. d4 {[%clk 0:15:00]}  d5 {[%clk 0:15:00]} 3. exd5 {[%clk 0:15:00]}  cxd5 {[%clk 0:15:00]} 4. Bd3 {[%clk 0:15:00]}  Nc6 {[%clk 0:15:00]} 5. c3 {[%clk 0:15:00]}  e6 {[%clk 0:15:00]} 6. Bf4 {[%clk 0:15:00]}  Nge7 {[%clk 0:15:00]} 7. Nf3 {[%clk 0:15:00]}  f6 {[%clk 0:15:00]} 8. Qc2 {[%clk 0:15:19]}  g5 {[%clk 0:15:06]} 9. Bg3 {[%clk 0:15:19]}  Nf5 {[%clk 0:15:06]} 10. Nbd2 {[%clk 0:13:50]}  h5 {[%clk 0:13:27]} 11. h4 {[%clk 0:13:50]}  Nxg3 {[%clk 0:11:46]} 12. fxg3 {[%clk 0:13:14]}  g4 {[%clk 0:11:46]} 13. Ng1 {[%clk 0:13:14]}  Bd6 {[%clk 0:10:55]} 14. Ne2 {[%clk 0:13:30]}  Qc7 {[%clk 0:10:55]} 15. O-O {[%clk 0:13:30]}  Bxg3 {[%clk 0:08:34]} 16. Nxg3 {[%clk 0:12:28]}  Qxg3 {[%clk 0:08:34]} 17. Rxf6 {[%clk 0:12:28]}  Bd7 {[%clk 0:08:34]} 18. Bg6+ {[%clk 0:12:38]}  Kd8 {[%clk 0:05:35]} 19. Raf1 {[%clk 0:12:38]}  Kc7 {[%clk 0:05:35]} 20. Qd3 {[%clk 0:07:01]}  Qxh4 {[%clk 0:05:35]} 21. Rf7 {[%clk 0:07:01]}  Rag8 {[%clk 0:05:06]} 22. Bh7 {[%clk 0:07:01]}  Rd8 {[%clk 0:05:06]} 23. Qe3 {[%clk 0:07:01]}  Kb8 {[%clk 0:05:06]} 24. Qf4+ {[%clk 0:07:01]}  e5 {[%clk 0:05:06]} 25. dxe5 {[%clk 0:07:01]}  Be6 {[%clk 0:01:42]} 26. Rf6 {[%clk 0:06:33]}  Rxh7 {[%clk 0:01:42]} 27. Nf3 {[%clk 0:06:33]}  Qxf6 {[%clk 0:01:42]} 28. exf6+ {[%clk 0:06:33]}  Rc7 {[%clk 0:01:35]} 29. Ng5 {[%clk 0:05:57]}  Bg8 {[%clk 0:01:35]} 30. f7 {[%clk 0:05:57]}  Bxf7 {[%clk 0:01:35]} 31. Nxf7 {[%clk 0:05:57]}  Rf8 {[%clk 0:01:35]} 32. Qd6 {[%clk 0:05:57]} 1-0


[Site "http://www.Chess.com"]

[Event "FIDE World Rapid Chess Championship 2021"]
[White "Cheparinov, Ivan"]
[Black "Giri, Anish"]
[WhiteFideId "2905540"]
[BlackFideId "24116068"]
[WhiteElo "2621"]
[BlackElo "2767"]
[Result "1-0"]
[Round "09"]
[TimeControl "900+10"]
[Date "2021.12.27"]
[WhiteClock "0:04:17"]
[BlackClock "0:01:35"]

1. d4 {[%clk 0:15:00]}  d5 {[%clk 0:15:00]} 2. c4 {[%clk 0:15:00]}  c6 {[%clk 0:15:00]} 3. Nf3 {[%clk 0:15:00]}  Nf6 {[%clk 0:15:00]} 4. Nc3 {[%clk 0:15:00]}  dxc4 {[%clk 0:15:00]} 5. a4 {[%clk 0:15:00]}  Bf5 {[%clk 0:15:00]} 6. Ne5 {[%clk 0:15:00]}  e6 {[%clk 0:15:00]} 7. f3 {[%clk 0:15:00]}  Bb4 {[%clk 0:15:00]} 8. Nxc4 {[%clk 0:15:00]}  O-O {[%clk 0:15:00]} 9. Kf2 {[%clk 0:15:00]}  h6 {[%clk 0:15:00]} 10. e4 {[%clk 0:14:14]}  Bh7 {[%clk 0:16:27]} 11. Be3 {[%clk 0:14:14]}  a5 {[%clk 0:14:34]} 12. Be2 {[%clk 0:13:31]}  Na6 {[%clk 0:14:34]} 13. Qb3 {[%clk 0:13:31]}  Nd7 {[%clk 0:13:30]} 14. Rhd1 {[%clk 0:12:08]}  Kh8 {[%clk 0:13:30]} 15. Kg1 {[%clk 0:12:08]}  f5 {[%clk 0:13:30]} 16. e5 {[%clk 0:12:08]}  Nc7 {[%clk 0:13:30]} 17. Bf2 {[%clk 0:11:04]}  Qe7 {[%clk 0:12:43]} 18. Na2 {[%clk 0:11:04]}  Nd5 {[%clk 0:12:43]} 19. Nxb4 {[%clk 0:11:04]}  axb4 {[%clk 0:12:43]} 20. Nd6 {[%clk 0:11:04]}  b6 {[%clk 0:12:43]} 21. Bc4 {[%clk 0:10:35]}  Ra5 {[%clk 0:11:21]} 22. Nb7 {[%clk 0:10:35]}  Ra7 {[%clk 0:09:57]} 23. Bxd5 {[%clk 0:09:21]}  exd5 {[%clk 0:09:57]} 24. Nd6 {[%clk 0:09:21]}  c5 {[%clk 0:10:03]} 25. Qxd5 {[%clk 0:09:28]}  cxd4 {[%clk 0:10:03]} 26. Nb5 {[%clk 0:09:28]}  Raa8 {[%clk 0:06:02]} 27. Bxd4 {[%clk 0:08:33]}  Bg8 {[%clk 0:06:02]} 28. Qd6 {[%clk 0:08:33]}  Qxd6 {[%clk 0:06:02]} 29. exd6 {[%clk 0:08:33]}  Bb3 {[%clk 0:05:25]} 30. Re1 {[%clk 0:07:41]}  Rxa4 {[%clk 0:05:25]} 31. Rac1 {[%clk 0:07:41]}  Ra5 {[%clk 0:03:02]} 32. Nc7 {[%clk 0:07:08]}  Rf7 {[%clk 0:03:02]} 33. Re7 {[%clk 0:07:08]}  Kg8 {[%clk 0:03:02]} 34. Rce1 {[%clk 0:07:08]}  Nf8 {[%clk 0:02:33]} 35. Bxb6 {[%clk 0:06:15]}  Ra2 {[%clk 0:02:33]} 36. Bd4 {[%clk 0:06:15]}  f4 {[%clk 0:02:33]} 37. Kf2 {[%clk 0:06:15]}  Ra4 {[%clk 0:02:03]} 38. h4 {[%clk 0:05:48]}  Bc4 {[%clk 0:02:03]} 39. Rxf7 {[%clk 0:05:48]}  Bxf7 {[%clk 0:02:03]} 40. Re7 {[%clk 0:05:48]}  b3 {[%clk 0:02:03]} 41. Bc3 {[%clk 0:05:48]}  Rc4 {[%clk 0:02:03]} 42. d7 {[%clk 0:05:48]}  Nxd7 {[%clk 0:01:35]} 43. Rxd7 {[%clk 0:04:17]}  Rxc3 {[%clk 0:01:35]} 44. bxc3 {[%clk 0:04:17]}  b2 {[%clk 0:01:35]} 45. Rd8+ {[%clk 0:04:17]} 1-0


[Site "http://www.Chess.com"]

[Event "FIDE World Rapid Chess Championship 2021"]
[White "Rapport, Richard"]
[Black "Amin, Bassem"]
[WhiteFideId "738590"]
[BlackFideId "10601457"]
[WhiteElo "2750"]
[BlackElo "2614"]
[Result "0-1"]
[Round "09"]
[TimeControl "900+10"]
[Date "2021.12.27"]
[WhiteClock "0:05:46"]
[BlackClock "0:01:15"]

1. e4 {[%clk 0:05:46]}  e5 {[%clk 0:01:15]} 2. Nf3 {[%clk 0:05:46]}  Nc6 {[%clk 0:01:15]} 3. g3 {[%clk 0:05:46]}  Nf6 {[%clk 0:01:15]} 4. d3 {[%clk 0:05:46]}  d5 {[%clk 0:01:15]} 5. exd5 {[%clk 0:05:46]}  Nxd5 {[%clk 0:01:15]} 6. Bg2 {[%clk 0:05:46]}  g6 {[%clk 0:01:15]} 7. Nc3 {[%clk 0:05:46]}  Bg7 {[%clk 0:01:15]} 8. O-O {[%clk 0:05:46]}  O-O {[%clk 0:01:15]} 9. Nxd5 {[%clk 0:05:46]}  Qxd5 {[%clk 0:01:15]} 10. Re1 {[%clk 0:05:46]}  Qd6 {[%clk 0:01:15]} 11. Nd2 {[%clk 0:05:46]}  Re8 {[%clk 0:01:15]} 12. Ne4 {[%clk 0:05:46]}  Qd8 {[%clk 0:01:15]} 13. c3 {[%clk 0:05:46]}  h6 {[%clk 0:01:15]} 14. b4 {[%clk 0:05:46]}  Kh7 {[%clk 0:01:15]} 15. h4 {[%clk 0:05:46]}  f5 {[%clk 0:01:15]} 16. Bg5 {[%clk 0:05:46]}  Qd7 {[%clk 0:01:15]} 17. Nf6+ {[%clk 0:05:46]}  Bxf6 {[%clk 0:01:15]} 18. Bxf6 {[%clk 0:05:46]}  Qd6 {[%clk 0:01:15]} 19. b5 {[%clk 0:05:46]}  Nb8 {[%clk 0:01:15]} 20. Bxe5 {[%clk 0:05:46]}  Rxe5 {[%clk 0:01:15]} 21. Qb3 {[%clk 0:05:46]}  Be6 {[%clk 0:01:15]} 22. Qb4 {[%clk 0:05:46]}  Nd7 {[%clk 0:01:15]} 23. Bxb7 {[%clk 0:05:46]}  Qxb4 {[%clk 0:01:15]} 24. cxb4 {[%clk 0:05:46]}  Rb8 {[%clk 0:01:15]} 25. Bc6 {[%clk 0:05:46]}  Rxe1+ {[%clk 0:01:15]} 26. Rxe1 {[%clk 0:05:46]}  Nf8 {[%clk 0:01:15]} 27. d4 {[%clk 0:05:46]}  Bxa2 {[%clk 0:01:15]} 28. Re7+ {[%clk 0:05:46]}  Kh8 {[%clk 0:01:15]} 29. Rxc7 {[%clk 0:05:46]}  Bc4 {[%clk 0:01:15]} 30. Rxa7 {[%clk 0:05:46]}  Bxb5 {[%clk 0:01:15]} 31. d5 {[%clk 0:05:46]}  Rb6 {[%clk 0:01:15]} 32. Rc7 {[%clk 0:05:46]}  Bxc6 {[%clk 0:01:15]} 33. dxc6 {[%clk 0:05:46]}  Ne6 {[%clk 0:01:15]} 34. Rf7 {[%clk 0:05:46]}  Rxc6 {[%clk 0:01:15]} 35. b5 {[%clk 0:05:46]}  Rb6 {[%clk 0:01:15]} 36. h5 {[%clk 0:05:46]}  Ng5 {[%clk 0:01:15]} 37. Ra7 {[%clk 0:05:46]}  gxh5 {[%clk 0:01:15]} 38. Ra6 {[%clk 0:05:46]}  Rxb5 {[%clk 0:01:15]} 39. Rxh6+ {[%clk 0:05:46]}  Kg7 {[%clk 0:01:15]} 40. Rxh5 {[%clk 0:05:46]}  Kg6 {[%clk 0:01:15]} 41. Rh8 {[%clk 0:05:46]}  Ne4 {[%clk 0:01:15]} 42. Rh4 {[%clk 0:05:46]}  Rb1+ {[%clk 0:01:15]} 43. Kg2 {[%clk 0:05:46]}  Rb2 {[%clk 0:01:15]} 44. Rf4 {[%clk 0:05:46]}  Kg5 {[%clk 0:01:15]} 45. Rf3 {[%clk 0:05:46]}  Rd2 {[%clk 0:01:15]} 46. Kg1 {[%clk 0:05:46]}  Nc5 {[%clk 0:01:15]} 47. Rf4 {[%clk 0:05:46]}  Nd3 {[%clk 0:01:15]} 48. Rd4 {[%clk 0:05:46]}  Rd1+ {[%clk 0:01:15]} 49. Kh2 {[%clk 0:05:46]}  Nxf2 {[%clk 0:01:15]} 0-1


[Site "http://www.Chess.com"]